bitfinex/quotes_SOLUSD_20250306
["timestamp","ask_amount","ask_price","bid_price","bid_amount"]
[1741220593167,12.95183143,146.0,145.96,141.40064125]
[1741220593471,0.03942163,145.99,145.97,29.56174125]
[1741220593673,0.03942163,145.99,145.98,29.56174125]
[1741220594183,0.03942163,145.99,145.98,36.41194125]
[1741220594694,12.99125306,145.99,145.98,348.41194125]
[1741220594866,12.99125306,145.99,145.96,87.86]
[1741220595567,12.99125306,145.99,145.96,81.3]
[1741220595773,12.99125306,145.99,145.93,6.8526]
[1741220596073,12.95183143,145.98,145.93,13.4126]
[1741220596280,0.03942163,145.97,145.93,13.4126]
[1741220596481,0.03942163,145.97,145.93,6.8526]
[1741220596781,0.03942163,145.97,145.92,13.4129]
[1741220596982,0.03942163,145.97,145.92,6.56]
[1741220597289,1.11251776,145.97,145.9,29.56174125]
[1741220597467,1.11251776,145.97,145.91,6.8533]
[1741220597663,8.32605324,145.95,145.91,6.8533]
[1741220597863,0.03942163,145.94,145.91,318.8533]
[1741220598069,0.03942163,145.94,145.91,312.0]
[1741220598485,0.03942163,145.94,145.91,318.8533]
[1741220599279,12.95183143,145.93,145.91,318.8533]
[1741220599466,16.94034769,145.93,145.91,318.8533]
[1741220600582,12.3145695,145.93,145.92,29.56174125]
[1741220601291,12.3145695,145.93,145.91,88.1533]
[1741220601784,17.07823443,145.93,145.9,13.4139]
[1741220601990,0.03942163,145.92,145.9,6.8539]
[1741220602179,0.03942163,145.92,145.9,13.3739]
[1741220603267,3.98851626,145.91,145.9,13.3739]
[1741220603673,3.98851626,145.91,145.9,325.3739]
[1741220603874,97.87823443,145.91,145.78,145.6]
[1741220604076,1.11251776,145.9,145.82,29.56174125]
[1741220604281,1.11251776,145.9,145.82,81.3]
[1741220604769,1.11251776,145.9,145.83,6.6]
[1741220605077,13.08971817,145.89,145.83,6.6]
[1741220605263,0.03942163,145.88,145.84,6.8568]
[1741220606169,13.08971817,145.87,145.84,6.8568]
[1741220606370,0.03942163,145.86,145.84,6.8568]
[1741220606788,0.03942163,145.86,145.84,312.0]
[1741220607085,0.03942163,145.86,145.82,88.1577]
[1741220607389,0.03942163,145.86,145.82,88.1574]
[1741220607601,0.03942163,145.86,145.82,105.3018]
[1741220607968,13.08971817,145.85,145.82,105.3018]
[1741220608167,0.03942163,145.84,145.82,105.3018]
[1741220609283,13.08971817,145.83,145.82,105.3018]
[1741220609788,13.08971817,145.83,145.82,134.86354125]
[1741220610087,13.08971817,145.83,145.82,446.86354125]
[1741220610294,5.03450699,145.83,145.82,446.86354125]
[1741220610593,9.02302325,145.83,145.82,134.86354125]
[1741220610789,2.325e-05,145.83,145.82,134.86354125]
[1741220612279,0.03942163,145.84,145.82,134.86354125]
[1741220612681,0.03942163,145.84,145.83,36.41894125]
[1741220612880,0.03942163,145.84,145.83,6.8572]
[1741220613475,0.03942163,145.84,145.83,318.8572]
[1741220613996,0.03942163,145.84,145.83,400.1572]
[1741220614295,0.03942163,145.84,145.81,6.8882]
[1741220614795,0.03942163,145.84,145.81,36.44994125]
[1741220615599,0.03942163,145.84,145.81,53.59554125]
[1741220615794,0.03942163,145.84,145.82,29.56174125]
[1741220615999,2.163e-05,145.84,145.83,29.56174125]
[1741220616497,2.163e-05,145.84,145.83,175.16174125]
[1741220616881,2.163e-05,145.84,145.83,182.01894125]
[1741220617285,2.163e-05,145.84,145.83,494.01894125]
[1741220620279,2.163e-05,145.84,145.83,548.89691607]
[1741220621893,2.163e-05,145.84,145.83,519.33517482]
[1741220622975,2.163e-05,145.84,145.83,470.6973]
[1741220623679,2.163e-05,145.84,145.83,494.01894125]
[1741220623900,2.163e-05,145.84,145.83,88.1572]
[1741220624080,2.163e-05,145.84,145.83,81.3]
[1741220624275,2.163e-05,145.84,145.81,6.57]
[1741220624985,2.163e-05,145.84,145.81,13.4281]
[1741220625604,2.163e-05,145.84,145.81,60.13544125]
[1741220627107,2.163e-05,145.84,145.81,372.13544125]
[1741220627898,2.163e-05,145.84,145.81,342.5737]
[1741220628279,2.163e-05,145.84,145.81,325.4281]
[1741220628690,2.163e-05,145.84,145.81,354.98984125]
[1741220629088,2.163e-05,145.84,145.81,325.4281]
[1741220629725,2.163e-05,145.84,145.81,342.5737]
[1741220629906,2.163e-05,145.84,145.82,29.56174125]
[1741220630105,2.163e-05,145.84,145.83,6.8572]
[1741220630995,2.163e-05,145.84,145.82,6.8577]
[1741220631802,2.163e-05,145.84,145.82,36.41944125]
[1741220632708,2.163e-05,145.84,145.82,6.8577]
[1741220633085,2.163e-05,145.84,145.83,318.8572]
[1741220636415,2.163e-05,145.84,145.83,88.1572]
[1741220636714,5.04642001,145.84,145.83,88.1572]
[1741220637496,5.04642001,145.84,145.83,117.71894125]
[1741220637816,2.163e-05,145.84,145.83,88.1572]
[1741220637994,2.163e-05,145.84,145.83,117.71894125]
[1741220638417,2.163e-05,145.84,145.82,6.8577]
[1741220639420,2.163e-05,145.84,145.82,312.0]
[1741220640096,5.05752646,145.83,145.82,312.0]
[1741220640523,5.05752646,145.83,145.81,0.03]
[1741220641398,5.05752646,145.83,145.81,6.8881]
[1741220641820,13.16463269,145.82,145.81,6.8881]
[1741220642198,13.16463269,145.82,145.81,0.03]
[1741220651124,31.81428155,145.82,145.81,0.03]
[1741220651300,31.81428155,145.82,145.72,164.12365069]
[1741220651301,31.81428155,145.82,145.7,101.40125069]
[1741220651505,20.0,145.77,145.71,6.8629]
[1741220651701,1.07309613,145.79,145.71,188.14385069]
[1741220651914,13.16463269,145.82,145.76,18.52365069]
[1741220652117,13.16463269,145.82,145.76,88.1602]
[1741220652422,14.23772882,145.82,145.76,81.3]
[1741220652719,13.16463269,145.81,145.76,88.1605]
[1741220652922,13.16463269,145.81,145.79,29.6514035]
[1741220653332,13.16463269,145.81,145.79,312.0]
[1741220653631,13.16463269,145.8,145.79,312.0]
[1741220653838,13.16463269,145.8,145.79,341.6514035]
[1741220654129,13.16463269,145.8,145.79,117.8105035]
[1741220654433,13.16463269,145.8,145.79,88.1591]
[1741220654609,13.16463269,145.8,145.79,117.8105035]
[1741220655120,5.05752646,145.8,145.79,117.8105035]
[1741220655321,5.05752646,145.8,145.79,182.1105035]
[1741220656535,13.13372383,145.83,145.79,88.1591]
[1741220656713,13.13372383,145.83,145.79,117.8105035]
[1741220656913,13.13372383,145.83,145.81,6.8582]
[1741220657230,13.13372383,145.83,145.81,348.5096035]
[1741220657405,13.13372383,145.83,145.81,318.8582]
[1741220657608,13.13372383,145.83,145.81,36.5096035]
[1741220657829,13.13372383,145.83,145.82,29.6514035]
[1741220658009,2.163e-05,145.84,145.82,29.6514035]
[1741220658421,2.163e-05,145.84,145.83,29.6514035]
[1741220659029,2.163e-05,145.84,145.83,36.5086035]
[1741220659529,5.04950888,145.84,145.83,36.5086035]
[1741220659730,1.536,145.94,145.83,212.18649171]
[1741220660030,1.536,145.94,145.89,29.6514035]
[1741220660340,20.0,145.93,145.89,6.5]
[1741220660710,20.0,145.93,145.89,318.5]
[1741220661023,21.07309613,145.93,145.89,6.5]
[1741220661214,20.0,145.92,145.89,6.5]
[1741220661537,1.07309613,145.91,145.84,87.8]
[1741220662041,20.0,145.87,145.84,81.3]
[1741220662253,20.0,145.87,145.82,6.48]
[1741220662541,20.0,145.87,145.82,36.1314035]
[1741220662745,8.08178777,145.86,145.82,42.9888035]
[1741220663440,8.08178777,145.86,145.82,6.48]
[1741220663823,8.08178777,145.86,145.82,318.48]
[1741220664459,8.08178777,145.86,145.82,354.9891035]
[1741220664760,8.08178777,145.86,145.82,348.5091035]
[1741220664958,8.08178777,145.86,145.82,354.9891035]
[1741220665262,8.08178777,145.86,145.82,325.3377]
[1741220666236,8.08178777,145.86,145.82,318.48]
[1741220667057,8.08178777,145.86,145.82,354.9891035]
[1741220667361,8.08178777,145.85,145.83,29.6514035]
[1741220667538,8.08178777,145.85,145.84,29.6514035]
[1741220667738,8.08178777,145.85,145.83,36.5084035]
[1741220668362,8.08178777,145.85,145.84,29.6514035]
[1741220669226,20.0,145.9,145.84,29.6514035]
[1741220669426,20.0,145.9,145.85,36.5077035]
[1741220670435,20.0,145.9,145.85,6.8563]
[1741220670654,8.08178777,145.89,145.86,312.0]
[1741220671843,13.13583653,145.88,145.86,312.0]
[1741220672779,13.13583653,145.87,145.86,312.0]
[1741220672943,13.13583653,145.87,145.86,117.8072035]
[1741220674158,5.05404876,145.87,145.86,117.8072035]
[1741220675248,5.05404876,145.87,145.86,119.4281035]
[1741220675649,5.05404876,145.87,145.86,184.15458821]
[1741220675846,0.033,145.89,145.87,0.14216157]
[1741220676051,0.033,145.94,145.87,0.14216157]
[1741220676052,0.033,145.94,145.89,0.42648471]
[1741220676250,0.033,145.94,145.93,29.6514035]
[1741220676446,0.033,145.94,145.93,110.9514035]
[1741220676653,0.033,145.94,145.93,81.3]
[1741220677265,0.033,145.94,145.92,110.9514035]
[1741220677454,8.10645849,145.94,145.92,117.8041035]
[1741220677643,8.10645849,145.94,145.93,29.6514035]
[1741220678260,8.10645849,145.94,145.93,110.9514035]
[1741220678759,0.033,145.94,145.93,110.9514035]
[1741220680343,0.033,145.94,145.93,422.9514035]
[1741220680543,0.033,145.94,145.93,411.78330691]
[1741220682468,0.033,145.94,145.93,457.6]
[1741220683164,0.033,145.94,145.91,6.4]
[1741220683365,0.033,145.94,145.89,81.3]
[1741220683559,0.033,145.94,145.89,87.7]
[1741220684063,7.8475,145.94,145.89,81.3]
[1741220685668,0.033,145.94,145.89,110.90201419]
[1741220686041,0.033,145.94,145.89,422.90201419]
[1741220686363,0.033,145.94,145.89,29.60201419]
[1741220686567,0.033,145.94,145.81,87.76]
[1741220686568,20.0,145.9,145.81,87.76]
[1741220686760,20.0,145.9,145.84,29.60201419]
[1741220686947,20.0,145.9,145.84,110.90201419]
[1741220687143,1.5227,145.92,145.86,29.60201419]
[1741220687556,21.5227,145.92,145.86,81.3]
[1741220688268,5.02251997,145.91,145.86,81.3]
[1741220688479,5.02251997,145.91,145.86,110.90201419]
[1741220689372,5.02251997,145.9,145.86,422.90201419]
[1741220689867,5.02251997,145.9,145.87,29.60201419]
[1741220690065,5.02251997,145.9,145.86,422.90201419]
[1741220690460,5.02251997,145.91,145.86,422.90201419]
[1741220691951,5.02251997,145.91,145.86,393.3]
[1741220692568,5.02251997,145.91,145.86,87.72]
[1741220693065,1.5995,145.89,145.84,0.03]
[1741220693271,1.07309613,145.88,145.84,0.03]
[1741220693649,82.3995,145.89,145.84,0.03]
[1741220694052,83.47259613,145.89,145.84,0.03]
[1741220694372,99.44964886,145.88,145.84,0.0001]
[1741220694563,81.87309613,145.87,145.84,0.0001]
[1741220694872,18.64964886,145.86,145.78,0.0001]
[1741220695068,18.64964886,145.83,145.78,0.0001]
[1741220695271,1.07309613,145.82,145.78,0.0001]
[1741220695456,101.05544886,145.81,145.78,0.0001]
[1741220695648,1.07309613,145.8,145.78,0.0001]
[1741220695853,81.87309613,145.8,145.78,0.0001]
[1741220696254,5.02251997,145.79,145.78,0.0001]
[1741220696756,23.67216883,145.79,145.78,0.0001]
[1741220698552,5.02251997,145.79,145.78,0.0001]
[1741220699158,1.6058,145.81,145.78,0.0001]
[1741220699159,5.02251997,145.8,145.78,0.0001]
[1741220700365,5.02251997,145.79,145.78,0.0001]
[1741220700562,5.02251997,145.79,145.78,29.60211419]
[1741220700766,5.02251997,145.79,145.78,0.0001]
[1741220701277,19.72274499,145.85,145.78,0.0001]
[1741220701485,100.52274499,145.85,145.78,0.0001]
[1741220702270,81.87309613,145.85,145.78,29.60211419]
[1741220702583,5.01573411,145.84,145.78,341.60211419]
[1741220702786,5.01573411,145.84,145.78,312.0001]
[1741220703483,5.01573411,145.83,145.78,312.0001]
[1741220704467,5.01573411,145.83,145.78,341.60211419]
[1741220704870,5.01573411,145.83,145.8,29.60201419]
[1741220705072,20.0,145.84,145.78,29.60211419]
[1741220705277,20.0,145.81,145.78,0.0001]
[1741220705486,20.0,145.83,145.78,0.0001]
[1741220705487,20.0,145.8,145.78,0.0001]
[1741220705672,120.52274499,145.79,145.78,0.0001]
[1741220705870,120.52274499,145.79,145.69,81.33]
[1741220705871,20.0,145.74,145.69,81.33]
[1741220706280,20.0,145.72,145.69,0.03]
[1741220707084,21.07309613,145.72,145.69,0.03]
[1741220707485,107.66094886,145.71,145.69,0.03]
[1741220707667,100.52274499,145.7,145.69,0.03]
[1741220707865,100.52274499,145.7,145.6,29.60201419]
[1741220708071,2.0,145.68,145.56,10.73366325]
[1741220708280,99.44964886,145.69,145.56,10.73366325]
[1741220708281,81.87309613,145.67,145.56,10.73366325]
[1741220708594,81.87309613,145.67,145.57,29.60201419]
[1741220708765,80.8,145.66,145.56,10.73366325]
[1741220708971,18.64964886,145.62,145.56,10.73366325]
[1741220709187,18.64964886,145.6,145.56,10.73366325]
[1741220709504,1.07309613,145.59,145.56,10.73366325]
[1741220709678,1.07309613,145.64,145.56,10.73366325]
[1741220709871,38.64964886,145.63,145.56,10.73366325]
[1741220710204,18.64964886,145.61,145.56,10.73366325]
[1741220710368,20.0,145.58,145.56,10.73366325]
[1741220710982,20.0,145.58,145.51,31.38857499]
[1741220711288,1.07309613,145.6,145.51,38.10857499]
[1741220711491,20.0,145.59,145.51,38.10857499]
[1741220711883,1.07309613,145.61,145.52,29.60201419]
[1741220712191,18.64964886,145.65,145.53,29.60201419]
[1741220712372,18.64964886,145.61,145.51,38.10857499]
[1741220712574,10.67852382,145.59,145.51,38.10857499]
[1741220712774,10.67852382,145.59,145.53,29.60201419]
[1741220712974,10.67852382,145.59,145.54,29.60201419]
[1741220713183,1.07309613,145.61,145.51,71.02]
[1741220713474,1.07309613,145.61,145.51,77.8923]
[1741220713672,1.07309613,145.61,145.53,29.60201419]
[1741220713875,10.67852382,145.62,145.55,29.60201419]
[1741220714092,10.67852382,145.62,145.56,29.60201419]
[1741220714391,1.07309613,145.63,145.56,29.60201419]
[1741220714797,1.07309613,145.64,145.56,29.60201419]
[1741220715097,1.07309613,145.64,145.56,341.60201419]
[1741220716201,1.07309613,145.64,145.56,312.0]
[1741220716381,18.64964886,145.63,145.53,175.20201419]
[1741220716698,1.07309613,145.62,145.53,175.20201419]
[1741220716900,1.07309613,145.62,145.53,182.07331419]
[1741220717194,1.07309613,145.62,145.54,29.60201419]
[1741220717578,1.07309613,145.62,145.55,29.60201419]
[1741220717792,1.07309613,145.62,145.56,29.60201419]
[1741220718611,81.87309613,145.69,145.61,29.60201419]
[1741220718780,81.87309613,145.69,145.62,29.60201419]
[1741220719205,18.64964886,145.68,145.61,29.60201419]
[1741220719493,18.64964886,145.66,145.6,6.7]
[1741220719714,81.87309613,145.65,145.56,6.7]
[1741220719879,1.07309613,145.65,145.57,29.60201419]
[1741220720073,80.8,145.64,145.58,29.60201419]
[1741220720277,80.8,145.67,145.59,29.60201419]
[1741220720497,81.87309613,145.66,145.6,36.47011419]
[1741220720687,80.8,145.66,145.62,29.60201419]
[1741220720884,80.8,145.66,145.6,6.8681]
[1741220720885,80.8,145.69,145.63,29.60201419]
[1741220721084,80.8,145.69,145.6,88.1681]
[1741220721085,80.8,145.69,145.64,29.60201419]
[1741220721383,80.8,145.69,145.6,43.17011419]
[1741220721384,80.8,145.69,145.62,29.60201419]
[1741220721586,80.8,145.69,145.64,29.60201419]
[1741220721791,0.033,145.65,145.63,29.60201419]
[1741220722395,0.033,145.65,145.64,6.8662]
[1741220722900,0.033,145.65,145.61,6.8676]
[1741220723083,0.033,145.65,145.63,29.60201419]
[1741220723680,0.033,145.65,145.64,29.60201419]
[1741220724006,0.033,145.65,145.64,110.90201419]
[1741220724601,0.033,145.65,145.63,6.8665]
[1741220725593,0.033,145.65,145.63,36.46851419]
[1741220725998,0.033,145.65,145.64,36.46821419]
[1741220726696,0.033,145.65,145.64,117.76821419]
[1741220729604,0.033,145.65,145.64,429.76821419]
[1741220732399,0.033,145.65,145.64,400.1662]
[1741220732594,0.033,145.65,145.63,6.8665]
[1741220733713,0.033,145.65,145.64,29.60201419]
[1741220734118,81.87309613,145.75,145.64,175.20201419]
[1741220734415,81.87309613,145.75,145.68,29.60201419]
[1741220734593,10.67852382,145.74,145.68,29.60201419]
[1741220735703,4.97541908,145.73,145.67,29.60201419]
[1741220735899,4.97541908,145.73,145.66,29.60201419]
[1741220736104,6.04851521,145.73,145.66,6.8651]
[1741220736499,6.04851521,145.73,145.66,36.46711419]
[1741220736901,4.97541908,145.72,145.67,29.60201419]
[1741220737306,4.97541908,145.72,145.66,113.90185685]
[1741220737505,4.97541908,145.72,145.66,84.29984266]
[1741220737727,20.0,145.71,145.66,77.43474266]
[1741220738036,20.0,145.71,145.64,29.60201419]
[1741220738232,20.0,145.71,145.64,107.03675685]
[1741220738437,20.0,145.71,145.65,29.60201419]
[1741220739031,20.0,145.71,145.65,36.46741419]
[1741220739233,20.0,145.71,145.65,6.8654]
[1741220739536,4.97541908,145.7,145.65,36.46741419]
[1741220740038,4.97541908,145.7,145.67,29.60201419]
[1741220740240,4.97541908,145.7,145.69,29.60201419]
[1741220740810,4.97541908,145.74,145.69,29.60201419]
[1741220741332,4.97541908,145.74,145.7,36.46541419]
[1741220741642,4.97541908,145.74,145.7,6.8634]
[1741220741816,4.97541908,145.74,145.7,36.46541419]
[1741220742334,4.97541908,145.73,145.72,29.60201419]
[1741220743261,4.97541908,145.77,145.72,29.60201419]
[1741220743559,4.97541908,145.77,145.73,29.60201419]
[1741220743936,6.04851521,145.77,145.72,77.43474266]
[1741220744156,4.97541908,145.77,145.72,77.43474266]
[1741220744532,1.07309613,145.78,145.72,77.43474266]
[1741220745845,20.0,145.76,145.72,77.43474266]
[1741220746451,4.97541908,145.77,145.72,113.89905685]
[1741220746452,24.97541908,145.77,145.72,113.89905685]
[1741220746761,24.97541908,145.77,145.73,29.60201419]
[1741220747256,20.0,145.77,145.72,425.89905685]
[1741220747556,20.0,145.77,145.72,419.03675685]
[1741220747752,0.033,145.76,145.72,419.03675685]
[1741220747952,0.033,145.76,145.72,425.89915685]
[1741220749461,0.033,145.76,145.73,29.60201419]
[1741220751566,0.033,145.76,145.73,36.46391419]
[1741220752061,0.033,145.76,145.74,29.60201419]
[1741220753155,0.033,145.76,145.74,341.60201419]
[1741220753580,0.033,145.76,145.74,425.89815685]
[1741220754170,0.033,145.76,145.75,29.60201419]
[1741220755269,0.033,145.76,145.75,36.46301419]
[1741220756871,0.033,145.76,145.75,6.861]
[1741220758147,0.033,145.76,145.75,36.46301419]
[1741220759868,0.033,145.76,145.75,113.89775685]
[1741220760576,0.033,145.76,145.75,102.82457771]
[1741220761353,0.033,145.76,145.75,77.43474266]
[1741220762056,0.033,145.76,145.75,84.29574266]
[1741220763074,0.033,145.76,145.75,102.82457771]
[1741220763259,0.033,145.76,145.75,84.29574266]
[1741220763871,0.033,145.76,145.75,102.82457771]
[1741220764388,0.033,145.76,145.75,77.43474266]
[1741220764892,0.033,145.76,145.71,77.43474266]
[1741220765065,0.033,145.76,145.72,31.85123505]
[1741220765467,0.033,145.76,145.73,18.52883505]
[1741220766267,0.033,145.76,145.74,6.8615]
[1741220766865,0.033,145.76,145.75,18.52883505]
[1741220767782,0.033,145.76,145.74,77.43474266]
[1741220768083,0.033,145.76,145.72,102.82597771]
[1741220768288,0.033,145.76,145.72,84.29714266]
[1741220768484,0.033,145.76,145.72,102.82597771]
[1741220769692,0.033,145.76,145.69,6.8638]
[1741220769872,1.6099,145.76,145.69,18.52883505]
[1741220770067,1.6099,145.76,145.71,18.52883505]
[1741220770278,5.03890309,145.75,145.72,18.52883505]
[1741220770687,5.03890309,145.75,145.73,18.52883505]
[1741220770862,5.03890309,145.75,145.74,18.52883505]
[1741220771068,5.03890309,145.75,145.74,330.52883505]
[1741220771269,0.033,145.76,145.74,330.52883505]
[1741220771469,0.033,145.76,145.75,18.52883505]
[1741220771682,0.033,145.76,145.75,25.38983505]
[1741220772175,0.033,145.76,145.75,102.82457771]
[1741220772695,5.07625648,145.76,145.75,102.82457771]
[1741220773195,5.07625648,145.76,145.75,77.43474266]
[1741220773598,5.07625648,145.76,145.73,18.52883505]
[1741220773985,0.033,145.76,145.72,18.52883505]
[1741220774183,0.033,145.76,145.72,95.96357771]
[1741220775295,0.719,145.76,145.72,95.96357771]
[1741220775793,0.033,145.76,145.72,95.96357771]
[1741220776107,0.033,145.76,145.72,77.43474266]
[1741220776271,5.04596914,145.75,145.72,77.43474266]
[1741220776795,5.04596914,145.75,145.72,84.29714266]
[1741220776970,5.04596914,145.75,145.72,77.43474266]
[1741220778696,5.04596914,145.75,145.72,84.29704266]
[1741220778892,5.04596914,145.74,145.72,84.29704266]
[1741220779574,5.04596914,145.74,145.73,18.52883505]
[1741220779777,5.04596914,145.74,145.73,102.82557771]
[1741220779982,0.033,145.76,145.73,102.82557771]
[1741220780205,0.033,145.76,145.74,18.52883505]
[1741220780378,0.033,145.76,145.75,18.52883505]
[1741220780698,0.033,145.76,145.75,95.96357771]
[1741220781497,5.09056974,145.76,145.75,95.96357771]
[1741220781881,5.09056974,145.76,145.75,84.29574266]
[1741220782279,5.09056974,145.76,145.75,414.82457771]
[1741220783198,5.09056974,145.76,145.75,396.29574266]
[1741220785295,5.09056974,145.76,145.75,84.29574266]
[1741220785680,5.09056974,145.76,145.75,102.82457771]
[1741220787402,0.033,145.8,145.75,131.9863701]
[1741220787618,0.033,145.8,145.79,18.52883505]
[1741220787813,0.033,145.8,145.79,99.82883505]
[1741220787984,0.033,145.8,145.79,106.68793505]
[1741220788312,0.033,145.8,145.79,81.3]
[1741220788517,0.033,145.8,145.78,18.52883505]
[1741220788518,0.033,145.8,145.78,25.38823505]
[1741220789380,0.033,145.8,145.79,18.52883505]
[1741220790211,0.033,145.8,145.79,25.38793505]
[1741220791382,0.033,145.8,145.79,337.38793505]
[1741220792400,0.033,145.8,145.79,418.68793505]
[1741220793181,0.0001,145.8,145.79,167.91441976]
[1741220794503,0.033,145.88,145.85,18.52883505]
[1741220794811,0.033,145.88,145.85,99.82883505]
[1741220795384,0.033,145.88,145.87,18.52883505]
[1741220795584,0.033,145.88,145.86,18.52883505]
[1741220795879,0.033,145.88,145.86,99.82883505]
[1741220796193,0.033,145.88,145.87,25.38423505]
[1741220796395,0.033,145.88,145.86,87.76]
[1741220798307,0.033,145.88,145.83,81.3]
[1741220798494,18.68264886,145.88,145.83,81.3]
[1741220799604,20.26874886,145.86,145.8,87.74]
[1741220799810,101.06874886,145.86,145.8,6.44]
[1741220800111,1.07309613,145.85,145.8,6.44]
[1741220800488,0.6856,145.85,145.8,6.44]
[1741220800686,1.75869613,145.85,145.8,6.44]
[1741220800905,3.47269613,145.85,145.8,6.44]
[1741220801492,0.6856,145.85,145.8,6.44]
[1741220802094,82.4191,145.86,145.8,31.82703505]
[1741220802711,83.1046,145.86,145.8,31.82703505]
[1741220803688,82.4191,145.86,145.81,18.52883505]
[1741220804098,0.033,145.88,145.83,18.52883505]
[1741220804305,0.033,145.88,145.83,99.82883505]
[1741220805009,18.64964886,145.86,145.8,6.44]
[1741220805216,19.72274499,145.86,145.8,6.44]
[1741220805622,26.01694499,145.86,145.8,6.44]
[1741220805801,18.64964886,145.83,145.78,0.03]
[1741220806126,19.72274499,145.83,145.78,0.03]
[1741220806695,18.64964886,145.81,145.78,0.03]
[1741220806893,19.72274499,145.81,145.78,0.03]
[1741220807400,26.56944886,145.79,145.69,88.1637]
[1741220807614,81.87309613,145.78,145.69,88.1637]
[1741220807804,18.64964886,145.76,145.69,88.1637]
[1741220808197,80.8,145.77,145.69,106.69253505]
[1741220808405,80.8,145.77,145.71,18.52883505]
[1741220808611,80.8,145.77,145.71,29.66283119]
[1741220808809,80.8,145.77,145.7,29.66283119]
[1741220809319,20.40874499,145.76,145.69,117.82653119]
[1741220809613,19.72274499,145.76,145.69,88.1637]
[1741220809821,1.07309613,145.76,145.69,117.82653119]
[1741220810027,80.8,145.77,145.7,29.66283119]
[1741220810221,80.8,145.77,145.71,29.66283119]
[1741220810424,80.8,145.77,145.7,29.66283119]
[1741220811430,7.9198,145.79,145.73,29.66283119]
[1741220811632,7.9198,145.79,145.72,29.66283119]
[1741220811932,26.56944886,145.79,145.72,29.66283119]
[1741220812121,27.25534886,145.79,145.72,29.66283119]
[1741220812430,27.25534886,145.79,145.71,88.1629]
[1741220812431,19.72274499,145.78,145.71,88.1629]
[1741220812633,19.72274499,145.78,145.71,117.82573119]
[1741220813717,20.40864499,145.78,145.71,117.82573119]
[1741220814437,20.40864499,145.78,145.71,429.82573119]
[1741220814615,20.40864499,145.78,145.71,400.1629]
[1741220814817,20.40864499,145.78,145.71,429.82573119]
[1741220815521,19.72274499,145.78,145.71,429.82573119]
[1741220818338,18.64964886,145.78,145.71,429.82573119]
[1741220819137,18.64964886,145.78,145.72,29.66283119]
[1741220819513,88.7198,145.79,145.75,29.66283119]
[1741220819841,90.00849613,145.83,145.76,29.66283119]
[1741220820042,18.64964886,145.82,145.77,6.8601]
[1741220820547,18.64964886,145.82,145.76,36.52323119]
[1741220820745,18.64964886,145.82,145.77,29.66283119]
[1741220821236,8.1354,145.83,145.78,29.66283119]
[1741220821440,1.5358,145.83,145.79,29.66283119]
[1741220821737,10.71152382,145.84,145.8,29.66283119]
[1741220821921,10.71152382,145.84,145.81,29.66283119]
[1741220822122,10.71152382,145.84,145.82,29.66283119]
[1741220822323,0.033,145.84,145.82,29.66283119]
[1741220822736,0.033,145.84,145.82,36.06283119]
[1741220823420,0.033,145.84,145.82,6.4]
[1741220823644,0.033,145.84,145.82,36.06283119]
[1741220823942,0.033,145.84,145.83,29.66283119]
[1741220824629,0.033,145.84,145.83,171.76283119]
[1741220826847,0.033,145.84,145.83,483.76283119]
[1741220827228,0.033,145.84,145.83,142.1]
[1741220828146,0.033,145.84,145.82,6.4]
[1741220830551,0.033,145.84,145.8,418.19631668]
[1741220830729,0.033,145.84,145.8,87.68]
[1741220830931,18.64964886,145.83,145.75,160.61631668]
[1741220831231,20.0,145.82,145.75,99.81631668]
[1741220832545,20.0,145.82,145.75,110.9465532]
[1741220832753,0.6858,145.81,145.75,110.9465532]
[1741220833552,0.6858,145.81,145.75,110.9765532]
[1741220833733,0.6857,145.82,145.75,422.9765532]
[1741220833939,0.6857,145.82,145.76,29.6465532]
[1741220834266,0.6857,145.83,145.77,29.6465532]
[1741220835952,0.6857,145.83,145.77,110.9465532]
[1741220836169,22.12274499,145.83,145.77,81.3]
[1741220838055,21.04964886,145.83,145.77,81.3]
[1741220839551,2.4,145.83,145.77,81.3]
[1741220840445,2.4,145.83,145.77,110.9465532]
[1741220841045,2.4,145.83,145.77,81.3]
[1741220841561,21.04964886,145.83,145.77,81.3]